fUST/lending_fUST_20260227
["ID","MTS","AMOUNT","RATE_DAILY","PERIOD"]
[406780103,1772181039097,-257.0,0.00015911,2]
[406780104,1772181039106,-257.0,0.00015971,2]
[406780105,1772181039115,-2000.0,0.00016,2]
[406780106,1772181039125,-2000.0,0.00016,2]
[406780107,1772181039134,-500.0,0.00016001,2]
[406780108,1772181039143,-257.0,0.00016012,2]
[406780109,1772181039153,-1773.24266975,0.00016018,2]
[406780110,1772181039163,-500.0,0.00016019,2]
[406780111,1772181039172,-257.0,0.00016028,2]
[406780112,1772181039182,-257.0,0.00016044,2]
[406780113,1772181039191,-500.0,0.0001613,2]
[406780114,1772181039201,-257.0,0.0001625,2]
[406780115,1772181039211,-257.0,0.00016277,2]
[406780116,1772181039220,-500.0,0.00016287,2]
[406780117,1772181039230,-257.0,0.000163,2]
[406780118,1772181039239,-257.0,0.00016309,2]
[406780119,1772181039249,-500.0,0.00016333,2]
[406780120,1772181039258,-257.0,0.00016356,2]
[406780121,1772181039268,-164.865225,0.00016367,2]
[406780122,1772181039278,-257.0,0.00016379,2]
[406780123,1772181039290,-500.0,0.00016391,2]
[406780124,1772181039299,-233.9,0.00016438,2]
[406780125,1772181039312,-162.15648322,0.00016468,2]
[406780126,1772181039321,-291.8816698,0.00016468,2]
[406780127,1772181039524,-298.53015304,0.00016468,2]
[406780128,1772181039535,-500.0,0.00016529,2]
[406780129,1772181039545,-1331.8978247,0.00016608,2]
[406780130,1772181039555,-257.0,0.00016614,2]
[406780131,1772181039564,-257.0,0.00016681,2]
[406780132,1772181039574,-500.0,0.00016683,2]
[406780133,1772181039584,-233.9,0.00016712,2]
[406780134,1772181039593,-500.0,0.00016718,2]
[406780135,1772181039603,-518.90074632,0.00016853,2]
[406780136,1772181039613,-340.83614044,0.00016853,2]
[406780137,1772181039624,-257.0,0.00016866,2]
[406780138,1772181039634,-227.0611645,0.0001689,2]
[406780139,1772181039644,-257.0,0.00016899,2]
[406780140,1772181039654,-500.0,0.0001691,2]
[406780141,1772181039663,-358.11690409,0.00016937,2]
[406780142,1772181039673,-257.0,0.00016947,2]
[406780143,1772181039683,-227.06116449,0.00016948,2]
[406780144,1772181039693,-257.0,0.00016962,2]
[406780145,1772181039703,-233.9,0.00016986,2]
[406780146,1772181039712,-64752.069069,0.0001699,2]
[406780151,1772181040883,-8152.8,0.0001699,2]
[406780404,1772181043331,-968.17436554,0.0001699,2]
[406780407,1772181043343,-11619.70262309,0.0001699,2]
[406780417,1772181043434,-14507.25394237,0.0001699,2]
[406780419,1772181043443,-164.692592,0.0001699,2]
[406780421,1772181043453,-60084.96056477,0.00017,2]
[406780423,1772181043463,-666.48382913,0.00017,2]
[406780693,1772181046143,-1242.87119465,0.00017,2]
[406780695,1772181046153,-206.29056145,0.00017004,2]
[406781240,1772182238444,-216.15557739,0.00013053,2]
[406781241,1772182238454,-2182.0,0.00013391,2]
[406781242,1772182238463,-637.0,0.00013391,2]
[406781243,1772182238471,-500.0,0.00013421,2]
[406781244,1772182238481,-500.0,0.00013672,2]
[406781245,1772182238490,-179.80221756,0.00013699,2]
[406781246,1772182238499,-1000.0,0.00013699,2]
[406781247,1772182238507,-2160.007282,0.00013816,2]
[406781248,1772182238516,-985.20797675,0.00014051,2]
[406781249,1772182238525,-500.0,0.00014051,2]
[406781250,1772182238533,-156.92,0.00014089,2]
[406781251,1772182238542,-744.82189483,0.0001409,2]
[406781252,1772182238551,-500.0,0.00014259,2]
[406781253,1772182238560,-209.40437684,0.00014288,2]
[406781254,1772182238569,-217.15233878,0.00014288,2]
[406781255,1772182238578,-225.18697532,0.00014288,2]
[406781256,1772182238586,-233.51889341,0.00014288,2]
[406781257,1772182238595,-242.15909246,0.00014288,2]
[406781258,1772182238604,-251.11897888,0.00014288,2]
[406781259,1772182238613,-260.4103811,0.00014288,2]
[406781260,1772182238622,-270.0455652,0.00014288,2]
[406781261,1772182238632,-280.03725112,0.00014288,2]
[406781262,1772182238641,-290.39862941,0.00014288,2]
[406781263,1772182238651,-301.1433787,0.00014288,2]
[406781264,1772182238660,-7869.6263778,0.00014296,2]
[406781265,1772182238673,-500.0,0.0001444,2]
[406781266,1772182238684,-500.0,0.00014686,2]
[406781267,1772182238693,-500.0,0.00014735,2]
[406781268,1772182238702,-715.0,0.00014903,2]
[406781269,1772182238712,-639.72152359,0.00014991,2]
[406781271,1772182238721,-255.06358131,0.00015053,2]
[406781273,1772182238730,-500.0,0.00015396,2]
[406781275,1772182238740,-715.0,0.00015543,2]
[406781277,1772182238749,-1733.71389698,0.000158,2]
[406781280,1772182238773,-3760.71978355,0.000158,2]
[406781281,1772182238783,-403.0,0.00015823,2]
[406781282,1772182238792,-1329.93200233,0.0001616,2]
[406781284,1772182238802,-500.0,0.0001626,2]
[406781286,1772182238813,-164.572,0.00016391,2]
[406781288,1772182238822,-2182.0,0.00016391,2]
[406781290,1772182238831,-637.0,0.00016391,2]
[406781292,1772182238841,-175.5,0.00016438,2]
[406781293,1772182238852,-500.0,0.00016451,2]
[406781295,1772182238861,-500.0,0.00016492,2]
[406781297,1772182238870,-175.5,0.00016712,2]
[406781300,1772182238881,-170.29587339,0.00016904,2]
[406781302,1772182238891,-500.0,0.00016985,2]
[406781304,1772182238900,-500.0,0.00016985,2]
[406781306,1772182238909,-500.0,0.00016985,2]
[406781308,1772182238918,-171.43145003,0.00016985,2]
[406781310,1772182238927,-500.0,0.00016985,2]
[406781312,1772182238936,-500.0,0.00016985,2]
[406781313,1772182238946,-500.0,0.00016985,2]
[406781316,1772182238955,-500.0,0.00016985,2]
[406781317,1772182238973,-500.0,0.00016985,2]
[406781320,1772182238983,-500.0,0.00016985,2]
[406781321,1772182238992,-500.0,0.00016985,2]
[406781323,1772182239001,-500.0,0.00016985,2]
[406781325,1772182239010,-500.0,0.00016985,2]
[406781327,1772182239019,-500.0,0.00016985,2]
[406781329,1772182239028,-500.0,0.00016985,2]
[406781331,1772182239037,-500.0,0.00016985,2]
[406781333,1772182239046,-500.0,0.00016985,2]
[406781335,1772182239055,-500.0,0.00016985,2]
[406781337,1772182239065,-500.0,0.00016985,2]
[406781339,1772182239074,-500.0,0.00016985,2]
[406781341,1772182239084,-535.83327253,0.00016985,2]
[406781343,1772182239093,-500.0,0.00016985,2]
[406781345,1772182239103,-500.0,0.00016985,2]
[406781347,1772182239113,-500.0,0.00016985,2]
[406781349,1772182239122,-500.0,0.00016985,2]
[406781351,1772182239132,-500.0,0.00016985,2]
[406781353,1772182239141,-407.84166466,0.00016985,2]
[406781355,1772182239150,-500.0,0.00016985,2]
[406781357,1772182239159,-500.0,0.00016985,2]
[406781359,1772182239168,-500.0,0.00016985,2]
[406781361,1772182239177,-500.0,0.00016985,2]
[406781363,1772182239186,-500.0,0.00016985,2]
[406781365,1772182239195,-161.26965011,0.00016985,2]
[406781367,1772182239205,-500.0,0.00016985,2]
[406781369,1772182239215,-500.0,0.00016985,2]
[406781371,1772182239227,-500.0,0.00016985,2]
[406781373,1772182239236,-500.0,0.00016985,2]
[406781375,1772182239245,-500.0,0.00016985,2]
[406781377,1772182239255,-500.0,0.00016985,2]
[406781401,1772182239472,-500.0,0.00016985,2]
[406781403,1772182239485,-500.0,0.00016985,2]
[406781405,1772182239494,-500.0,0.00016985,2]
[406781407,1772182239507,-523.45113933,0.00016985,2]
[406781409,1772182239517,-500.0,0.00016985,2]
[406781411,1772182239526,-500.0,0.00016985,2]
[406781413,1772182239535,-500.0,0.00016985,2]
[406781415,1772182239545,-500.0,0.00016985,2]
[406781417,1772182239555,-500.0,0.00016985,2]
[406781419,1772182239564,-500.0,0.00016985,2]
[406781421,1772182239573,-500.0,0.00016985,2]
[406781423,1772182239582,-500.0,0.00016985,2]
[406781425,1772182239592,-500.0,0.00016985,2]
[406781427,1772182239600,-500.0,0.00016985,2]
[406781429,1772182239610,-500.0,0.00016985,2]
[406781431,1772182239619,-175.5,0.00016986,2]
[406781433,1772182239628,-500.0,0.00016989,2]
[406781435,1772182239637,-580.61725382,0.00016989,2]
[406781437,1772182239646,-500.0,0.00016989,2]
[406781439,1772182239655,-39723.21304458,0.0001699,2]
[406781441,1772182239668,-3308.34040225,0.0001699,2]
[406781445,1772182239695,-1157.28467674,0.0001699,2]
[406781447,1772182239708,-6027.08810634,0.0001699,2]
[406781450,1772182239721,-3212.29911524,0.0001699,2]
[406781553,1772182240781,-4630.92129051,0.0001699,2]
[406781737,1772182243412,-7250.30172655,0.0001699,2]
[406781739,1772182243465,-1400.20670523,0.0001699,2]
[406781900,1772182246311,-1018.40100736,0.0001682,2]
[406781901,1772182246321,-1380.31161,0.0001699,2]
[406781963,1772183438525,-412.47389539,0.0001188,2]
[406781964,1772183438536,-5140.35,0.00012,2]
[406781965,1772183438546,-209.73119421,0.00012891,2]
[406781966,1772183438557,-410.48588423,0.00013086,2]
[406781967,1772183438567,-526.00690777,0.00013226,2]
[406781968,1772183438576,-204.905,0.00013391,2]
[406781969,1772183438584,-637.0,0.00013391,2]
[406781970,1772183438593,-500.0,0.00013428,2]
[406781971,1772183438602,-180.12949396,0.00013699,2]
[406781972,1772183438612,-156.0,0.00013699,2]
[406781973,1772183438621,-634.86270204,0.00013699,2]
[406781974,1772183438630,-500.0,0.00013802,2]
[406781975,1772183438642,-500.0,0.00013896,2]
[406781976,1772183438653,-500.0,0.00013945,2]
[406781977,1772183438662,-296.6732703,0.00014402,2]
[406781978,1772183438672,-500.0,0.00014545,2]
[406781979,1772183438682,-500.0,0.00014665,2]
[406781980,1772183438691,-247.48280917,0.00014891,2]
[406781981,1772183438701,-190.0,0.00015326,2]
[406781982,1772183438711,-500.0,0.00015331,2]
[406781983,1772183438722,-209.40437684,0.00015464,2]
[406781984,1772183438731,-217.15233878,0.00015464,2]
[406781985,1772183438740,-225.18697532,0.00015464,2]
[406781986,1772183438750,-233.51889341,0.00015464,2]
[406781987,1772183438759,-242.15909246,0.00015464,2]
[406781988,1772183438771,-251.11897888,0.00015464,2]
[406781989,1772183438780,-260.4103811,0.00015464,2]
[406781990,1772183438790,-270.0455652,0.00015464,2]
[406781991,1772183438799,-280.03725112,0.00015464,2]
[406781992,1772183438809,-290.39862941,0.00015464,2]
[406781993,1772183438818,-301.1433787,0.00015464,2]
[406781994,1772183438827,-207.67382204,0.00015487,2]
[406781995,1772183438836,-403.0,0.00015503,2]
[406781996,1772183438846,-500.0,0.00015678,2]
[406781997,1772183438855,-715.0,0.00015814,2]
[406781998,1772183438864,-500.0,0.00015975,2]
[406781999,1772183438874,-500.0,0.00016066,2]
[406782000,1772183438883,-744.82189483,0.00016093,2]
[406782001,1772183438893,-715.0,0.00016335,2]
[406782002,1772183438903,-164.573,0.00016335,2]
[406782003,1772183438912,-637.0,0.00016391,2]
[406782004,1772183438921,-403.0,0.00016463,2]
[406782005,1772183438931,-715.0,0.00016527,2]
[406782006,1772183438939,-1163.69050203,0.00016747,2]
[406782007,1772183438949,-500.0,0.00016819,2]
[406782008,1772183438958,-500.0,0.00016819,2]
[406782009,1772183438968,-500.0,0.00016819,2]
[406782010,1772183438977,-20000.0,0.0001682,2]
[406782011,1772183438987,-162.0,0.00016847,2]
[406782012,1772183438997,-500.0,0.00016847,2]
[406782013,1772183439008,-500.0,0.00016886,2]
[406782014,1772183439018,-247.35071716,0.00016889,2]
[406782015,1772183439029,-285.23442413,0.00016891,2]
[406782016,1772183439040,-2526.52081299,0.000169,2]
[406782017,1772183439049,-151.0,0.00016986,2]
[406782018,1772183439058,-500.0,0.00016986,2]
[406782019,1772183439068,-16789.7702708,0.00016987,2]
[406782020,1772183439077,-1341.4590057,0.00016987,2]
[406782021,1772183439087,-500.0,0.00016989,2]
[406782022,1772183439097,-31910.03332256,0.0001699,2]
[406782023,1772183439107,-472.0,0.0001699,2]
[406782024,1772183439116,-50.70943855,0.00017004,2]
[406782025,1772183439126,-247.35071712,0.00017097,2]
[406782026,1772183439136,-500.0,0.00017121,2]
[406782027,1772183439146,-257.0,0.00017154,2]
[406782028,1772183439155,-35708.98701043,0.00017167,2]
[406782029,1772183439167,-3217.55515365,0.00017167,2]
[406782065,1772184007305,158.12,9.5e-05,2]
[406782066,1772184008526,158.12,9.5e-05,2]
[406782067,1772184009435,158.12,9.5e-05,2]
[406782068,1772184010168,158.12,9.5e-05,2]
[406782069,1772184010762,158.12,9.5e-05,2]
[406782070,1772184011326,158.12,9.5e-05,2]
[406782071,1772184012026,158.12,9.5e-05,2]
[406782072,1772184012768,158.12,9.5e-05,2]
[406782073,1772184013336,158.12,9.5e-05,2]
[406782074,1772184014391,158.12,9.5e-05,2]
[406782075,1772184014982,158.12,9.5e-05,2]
[406782076,1772184015684,158.12,9.5e-05,2]
[406782089,1772184395125,-298.42025008,0.00012634,2]
[406782090,1772184608536,171.04,9.5e-05,2]
[406782091,1772184609264,171.04,9.5e-05,2]
[406782092,1772184610077,171.04,9.5e-05,2]
[406782093,1772184611391,171.04,9.5e-05,2]
[406782129,1772184637724,-298.42025008,0.00012259,2]
[406782130,1772184637734,-3360.43845742,0.00012383,2]
[406782131,1772184637744,-595.0,0.00012383,2]
[406782132,1772184637754,-201.83687441,0.00012446,2]
[406782133,1772184637764,-500.0,0.00013031,2]
[406782134,1772184637774,-500.0,0.00013666,2]
[406782135,1772184637784,-288.18375169,0.00013699,2]
[406782136,1772184637794,-637.0,0.00014111,2]
[406782137,1772184637803,-729.0,0.00014111,2]
[406782138,1772184637813,-252.015826,0.0001416,2]
[406782139,1772184637822,-500.0,0.00014171,2]
[406782140,1772184637831,-577.90517423,0.00014175,2]
[406782141,1772184637840,-446.46627367,0.00014175,2]
[406782142,1772184637850,-443.80883353,0.00014175,2]
[406782143,1772184637859,-238.16751181,0.00014445,2]
[406782144,1772184637869,-1340.0069806,0.00014452,2]
[406782145,1772184637878,-500.0,0.00015,2]
[406782146,1772184637888,-300.0,0.0001509,2]
[406782147,1772184637898,-170.074072,0.00015092,2]
[406782148,1772184637907,-500.0,0.00015266,2]
[406782149,1772184637917,-1100.90038717,0.00015428,2]
[406782150,1772184637926,-500.0,0.00015836,2]
[406782151,1772184637936,-500.0,0.00016001,2]
[406782152,1772184637945,-500.0,0.00016026,2]
[406782153,1772184637955,-209.40437684,0.00016204,2]
[406782154,1772184637964,-217.15233878,0.00016204,2]
[406782155,1772184637974,-225.18697532,0.00016204,2]
[406782156,1772184637984,-171.09774221,0.00016204,2]
[406782169,1772184642729,-62.4211512,0.00016204,2]
[406782170,1772184642738,-242.15909246,0.00016204,2]
[406782171,1772184642747,-251.11897888,0.00016204,2]
[406782172,1772184642757,-260.4103811,0.00016204,2]
[406782173,1772184642766,-154.04692147,0.00016204,2]
[406782175,1772184646686,-925.33276025,0.00016042,2]
[406782177,1772185823101,1680.64,0.00012,30]
[406782191,1772185831700,-2208.91980456,0.00012873,2]
[406782192,1772185831710,-604.0,0.00013003,2]
[406782193,1772185831720,-500.0,0.00013178,2]
[406782194,1772185831729,-193.03678669,0.00013201,2]
[406782195,1772185831739,-500.0,0.00013958,2]
[406782196,1772185831748,-754.72844792,0.00014035,2]
[406782197,1772185831759,-159.05693169,0.00014682,2]
[406782198,1772185831769,-715.0,0.00015135,2]
[406782199,1772185831779,-227.78340829,0.00015201,2]
[406782200,1772185831789,-300.0,0.00016135,2]
[406782201,1772185831798,-1200.0,0.00016135,2]
[406782202,1772185831809,-15592.41442036,0.00016136,2]
[406782203,1772185831821,-567.11776152,0.00016136,2]
[406782204,1772185831833,-1002.36705731,0.00016136,2]
[406782211,1772185838376,-572.59237133,0.00016136,2]
[406782212,1772185838390,-744.82189483,0.00016138,2]
[406782213,1772185838399,-164.57384165,0.00016308,2]
[406782214,1772185838409,-9090.94054471,0.0001646,2]
[406782215,1772185838419,-500.0,0.00016499,2]
[406782216,1772185838429,-500.0,0.00016499,2]
[406782217,1772185838438,-500.0,0.00016499,2]
[406782218,1772185838447,-500.0,0.00016499,2]
[406782219,1772185838457,-500.0,0.00016499,2]
[406782220,1772185838467,-500.0,0.00016499,2]
[406782221,1772185838477,-500.0,0.00016499,2]
[406782222,1772185838486,-500.0,0.00016499,2]
[406782223,1772185838495,-500.0,0.00016499,2]
[406782224,1772185838505,-500.0,0.00016499,2]
[406782225,1772185838514,-500.0,0.00016499,2]
[406782226,1772185838523,-500.0,0.00016499,2]
[406782227,1772185838533,-500.0,0.00016499,2]
[406782228,1772185838543,-500.0,0.00016499,2]
[406782229,1772185838552,-500.0,0.00016499,2]
[406782230,1772185838561,-500.0,0.00016499,2]
[406782231,1772185838571,-500.0,0.00016499,2]
[406782232,1772185838581,-500.0,0.00016499,2]
[406782233,1772185838590,-500.0,0.00016499,2]
[406782234,1772185838599,-500.0,0.00016499,2]
[406782235,1772185838608,-500.0,0.00016499,2]
[406782236,1772185838618,-500.0,0.00016499,2]
[406782237,1772185838628,-250.0,0.00016499,2]
[406782238,1772185838638,-360.6577957,0.00016499,2]
[406782239,1772185838648,-500.0,0.00016499,2]
[406782240,1772185838657,-500.0,0.00016499,2]
[406782241,1772185838667,-500.0,0.00016499,2]
[406782242,1772185838676,-500.0,0.00016499,2]
[406782243,1772185838686,-500.0,0.00016499,2]
[406782244,1772185838695,-450.0,0.00016499,2]
[406782245,1772185838704,-500.0,0.00016499,2]
[406782246,1772185838714,-500.0,0.00016499,2]
[406782247,1772185838723,-500.0,0.00016499,2]
[406782248,1772185838733,-500.0,0.00016499,2]
[406782249,1772185838743,-500.0,0.00016499,2]
[406782250,1772185838752,-500.0,0.00016499,2]
[406782251,1772185838762,-500.0,0.00016499,2]
[406782252,1772185838771,-500.0,0.00016499,2]
[406782253,1772185838781,-450.0,0.00016499,2]
[406782254,1772185838790,-500.0,0.00016499,2]
[406782255,1772185838800,-6247.06343914,0.000165,2]
[406782256,1772185838812,-10011.47763623,0.000165,2]
[406782257,1772185838823,-12207.5649483,0.000165,2]
[406782258,1772185838834,-3761.78671344,0.000165,2]
[406782259,1772185838844,-185.51303784,0.00016504,2]
[406782260,1772185838853,-475.0,0.00016555,2]
[406782261,1772185838864,-794.0,0.00016555,2]
[406782262,1772185838873,-1216.14016406,0.00016587,2]
[406782263,1772185838885,-776.44781754,0.00016587,2]
[406782264,1772185838896,-978.54029154,0.00016587,2]
[406782284,1772185840358,-150.52457646,0.00015329,2]
[406782285,1772185840369,-4178.43216444,0.00016587,2]
[406782294,1772185845830,-482.64,0.00016587,2]
[406782296,1772185845841,-1047.76194729,0.00016587,2]
[406782299,1772186338052,2395.12,0.00012,30]
[406782320,1772187005845,153.24,9.5e-05,2]
[406782321,1772187006577,153.24,9.5e-05,2]
[406782322,1772187007397,153.24,9.5e-05,2]
[406782323,1772187008626,153.24,9.5e-05,2]
[406782324,1772187008832,153.24,9.5e-05,2]
[406782325,1772187009559,153.24,9.5e-05,2]
[406782326,1772187010662,153.24,9.5e-05,2]
[406782327,1772187011361,153.24,9.5e-05,2]
[406782328,1772187012073,153.24,9.5e-05,2]
[406782329,1772187012790,153.24,9.5e-05,2]
[406782330,1772187013520,153.24,9.5e-05,2]
[406782331,1772187014971,153.24,9.5e-05,2]
[406782332,1772187015738,153.24,9.5e-05,2]
[406782333,1772187016898,153.24,9.5e-05,2]
[406782334,1772187017697,153.24,9.5e-05,2]
[406782335,1772187018256,153.24,9.5e-05,2]
[406782336,1772187019351,153.24,9.5e-05,2]
[406782337,1772187019709,153.24,9.5e-05,2]
[406782338,1772187020383,153.24,9.5e-05,2]
[406782339,1772187021104,153.24,9.5e-05,2]
[406782340,1772187021828,153.24,9.5e-05,2]
[406782366,1772187031860,-203.2633674,0.00013868,25]
[406782367,1772187031870,-187.62038279,0.00013868,2]
[406782368,1772187031880,-227.54667019,0.00013868,2]
[406782369,1772187031891,-53.93957962,0.00013868,2]
[406782392,1772187038054,-564.06042038,0.00013868,2]
[406782393,1772187038064,-185.898,0.00014122,2]
[406782394,1772187038074,-729.0,0.00014122,2]
[406782395,1772187038084,-500.0,0.00014297,2]
[406782396,1772187038094,-744.82189483,0.00014305,2]
[406782397,1772187038104,-500.0,0.00014526,2]
[406782398,1772187038113,-170.074072,0.00015342,2]
[406782399,1772187038122,-221.39205169,0.00015868,2]
[406782400,1772187038132,-715.0,0.00016352,2]
[406782401,1772187038142,-500.0,0.00016382,2]
[406782402,1772187038152,-185.51303784,0.00016507,2]
[406782403,1772187038162,-300.0,0.00016509,2]
[406782404,1772187038174,-300.0,0.00016509,2]
[406782405,1772187038184,-1200.0,0.0001651,2]
[406782407,1772187038195,-300.0,0.0001651,2]
[406782409,1772187038205,-1940.5106862,0.00016511,2]
[406782411,1772187038214,-3599.7765346,0.00016511,2]
[406782413,1772187038226,-152.584626,0.00016584,2]
[406782415,1772187038236,-9523.87872413,0.00016587,2]
[406782416,1772187038248,-4079.21798276,0.00016587,2]
[406782417,1772187038259,-6200.83169344,0.00016587,2]
[406782418,1772187038271,-3247.78177964,0.00016587,2]
[406782432,1772187040571,-300.89295932,0.00016587,2]
[406782433,1772187040580,-209.40437684,0.00016596,2]
[406782434,1772187040590,-217.15233878,0.00016596,2]
[406782435,1772187040599,-225.18697532,0.00016596,2]
[406782436,1772187040609,-233.51889341,0.00016596,2]
[406782437,1772187040618,-242.15909246,0.00016596,2]
[406782438,1772187040627,-251.11897888,0.00016596,2]
[406782439,1772187040637,-260.4103811,0.00016596,2]
[406782440,1772187040646,-270.0455652,0.00016596,2]
[406782441,1772187040655,-280.03725112,0.00016596,2]
[406782442,1772187040664,-290.39862941,0.00016596,2]
[406782443,1772187040674,-301.1433787,0.00016596,2]
[406782444,1772187040683,-361.07,0.00016597,3]
[406782445,1772187040693,-180.54,0.00016597,3]
[406782446,1772187040703,-84.26474963,0.00016597,3]
[406782451,1772187044033,-1018.22918932,0.00016496,2]
[406782452,1772187044044,-96.27525037,0.00016597,3]
[406782453,1772187044053,-382.31,0.000166,5]
[406782454,1772187044063,-49.98186611,0.00016605,2]
[406782467,1772187046157,-450.01813389,0.00016605,2]
[406782468,1772187046167,-500.0,0.00016605,2]
[406782469,1772187046179,-500.0,0.00016605,2]
[406782470,1772187046197,-500.0,0.00016605,2]
[406782471,1772187046206,-182.08631641,0.00016605,2]
[406782472,1772187046216,-500.0,0.00016605,2]
[406782473,1772187046228,-409.00334873,0.00016605,2]
[406782474,1772187046238,-500.0,0.00016605,2]
[406782475,1772187046247,-500.0,0.00016605,2]
[406782476,1772187046257,-500.0,0.00016605,2]
[406782477,1772187046267,-500.0,0.00016605,2]
[406782478,1772187046277,-498.3610902,0.00016605,2]
[406782479,1772187046287,-500.0,0.00016605,2]
[406782480,1772187046297,-500.0,0.00016605,2]
[406782481,1772187046306,-500.0,0.00016605,2]
[406782482,1772187046316,-500.0,0.00016605,2]
[406782483,1772187046325,-481.98658194,0.00016605,2]
[406782484,1772187140703,10000.0,9.501e-05,2]
[406782485,1772187290579,10000.0,9.5e-05,2]
[406782504,1772188007309,-298.42025008,0.00011999,2]
[406782565,1772188232247,-574.94559855,0.0001176,2]
[406782567,1772188232256,-205.60947971,0.00011939,2]
[406782569,1772188232266,-488.0,0.00011997,2]
[406782571,1772188232275,-500.0,0.00011998,2]
[406782573,1772188232285,-500.0,0.00011998,2]
[406782575,1772188232294,-166.48456558,0.00011998,2]
[406782577,1772188232304,-500.0,0.00011998,2]
[406782579,1772188232314,-500.0,0.00011998,2]
[406782581,1772188232323,-500.0,0.00011998,2]
[406782583,1772188232333,-500.0,0.00011998,2]
[406782585,1772188232342,-500.0,0.00011998,2]
[406782587,1772188232352,-500.0,0.00011998,2]
[406782589,1772188232362,-500.0,0.00011998,2]
[406782591,1772188232372,-500.0,0.00011998,2]
[406782593,1772188232382,-500.0,0.00011998,2]
[406782595,1772188232391,-500.0,0.00011998,2]
[406782597,1772188232401,-500.0,0.00011998,2]
[406782599,1772188232411,-500.0,0.00011998,2]
[406782601,1772188232420,-500.0,0.00011998,2]
[406782603,1772188232429,-500.0,0.00011998,2]
[406782605,1772188232438,-500.0,0.00011998,2]
[406782607,1772188232447,-500.0,0.00011998,2]
[406782609,1772188232456,-500.0,0.00011998,2]
[406782611,1772188232466,-500.0,0.00011998,2]
[406782613,1772188232475,-500.0,0.00011998,2]
[406782615,1772188232484,-500.0,0.00011998,2]
[406782617,1772188232494,-500.0,0.00011998,2]
[406782619,1772188232503,-500.0,0.00011998,2]
[406782621,1772188232513,-500.0,0.00011998,2]
[406782622,1772188232523,-500.0,0.00011998,2]
[406782623,1772188232532,-500.0,0.00011998,2]
[406782624,1772188232541,-500.0,0.00011998,2]
[406782625,1772188232551,-500.0,0.00011998,2]
[406782626,1772188232560,-500.0,0.00011998,2]
[406782627,1772188232569,-477.319945,0.00011998,2]
[406782628,1772188232579,-500.0,0.00011998,2]
[406782629,1772188232588,-532.93754445,0.00011998,2]
[406782630,1772188232597,-500.0,0.00011998,2]
[406782631,1772188232607,-500.0,0.00011998,2]
[406782632,1772188232617,-500.0,0.00011998,2]
[406782633,1772188232627,-500.0,0.00011998,2]
[406782634,1772188232636,-500.0,0.00011998,2]
[406782635,1772188232646,-500.0,0.00011998,2]
[406782636,1772188232656,-500.0,0.00011998,2]
[406782637,1772188232665,-500.0,0.00011998,2]
[406782638,1772188232675,-500.0,0.00011998,2]
[406782639,1772188232684,-500.0,0.00011998,2]
[406782640,1772188232694,-500.0,0.00011998,2]
[406782641,1772188232703,-500.0,0.00011998,2]
[406782642,1772188232713,-500.0,0.00011998,2]
[406782643,1772188232723,-500.0,0.00011998,2]
[406782644,1772188232733,-500.0,0.00011998,2]
[406782645,1772188232743,-500.0,0.00011998,2]
[406782646,1772188232752,-500.0,0.00011998,2]
[406782647,1772188232762,-500.0,0.00011998,2]